bitfinex/quotes_ETHUSD_20240709
["timestamp","ask_amount","ask_price","bid_price","bid_amount"]
[1720491079535,1.20265385,3031.9,3031.0,1.749]
[1720491079735,1.14301011,3031.8,3031.0,1.749]
[1720491079934,0.42026539,3031.7,3031.0,1.749]
[1720491080139,0.05957592,3031.7,3031.0,1.749]
[1720491080508,0.46240312,3032.0,3031.0,1.749]
[1720491080714,1.20257084,3031.9,3031.0,1.749]
[1720491080946,0.05957403,3031.9,3031.0,1.749]
[1720491081150,1.14297864,3031.8,3031.0,1.749]
[1720491081333,3.05957403,3031.9,3031.0,1.749]
[1720491081334,0.42025527,3031.7,3031.0,1.749]
[1720491081544,0.47973371,3031.7,3031.0,1.749]
[1720491081712,0.05947844,3031.7,3031.0,1.749]
[1720491082047,0.46240312,3032.0,3031.0,1.749]
[1720491082252,0.0594255,3031.6,3031.0,1.749]
[1720491082546,0.05937255,3031.5,3031.0,1.749]
[1720491083077,4.62335386,3032.1,3031.0,1.749]
[1720491083238,0.05923932,3031.4,3031.0,1.749]
[1720491083434,3.0,3032.0,3031.1,2.3729]
[1720491083636,0.05920243,3031.3,3031.1,2.3729]
[1720491083978,0.05917152,3031.2,3031.1,2.3729]
[1720491084475,0.25665007,3032.1,3031.0,1.749]
[1720491084476,1.62335386,3032.1,3031.0,1.749]
[1720491084648,1.60530891,3032.0,3031.0,1.749]
[1720491084854,1.14297352,3031.9,3031.0,1.749]
[1720491085167,0.05952132,3031.8,3031.0,1.749]
[1720491085947,0.46233539,3032.0,3031.0,1.749]
[1720491086276,0.0594481,3031.7,3031.0,1.749]
[1720491086577,0.05939516,3031.6,3031.0,1.749]
[1720491086751,0.46233539,3032.0,3031.0,1.749]
[1720491086956,0.05934221,3031.5,3031.0,1.749]
[1720491087153,0.46233539,3032.0,3031.0,1.749]
[1720491087366,0.05928926,3031.4,3031.0,1.749]
[1720491087583,3.82880379,3032.3,3031.0,1.749]
[1720491087894,1.14286279,3032.2,3031.0,1.749]
[1720491088185,0.0597593,3032.2,3031.0,1.749]
[1720491088393,0.25218593,3032.1,3031.0,1.749]
[1720491088757,0.05956829,3032.0,3031.0,1.749]
[1720491090649,0.05956829,3032.0,3031.1,2.2714]
[1720491090860,0.05956829,3032.0,3031.4,1.749]
[1720491091158,4.76226095,3032.8,3031.4,1.749]
[1720491091427,2.12310348,3032.7,3031.4,1.749]
[1720491091681,1.14278055,3032.6,3031.4,1.749]
[1720491091884,1.14278055,3032.6,3031.8,1.749]
[1720491092046,0.06008436,3032.7,3031.8,1.749]
[1720491092244,0.31142775,3032.6,3031.8,1.749]
[1720491093399,0.05767027,3032.5,3031.8,1.749]
[1720491095067,0.06008436,3032.7,3031.8,1.749]
[1720491095258,0.057913,3032.4,3031.8,1.749]
[1720491095458,0.06008436,3032.7,3031.8,1.749]
[1720491095671,0.05783454,3032.3,3031.8,1.749]
[1720491095867,0.87561002,3032.7,3031.8,1.749]
[1720491096091,0.05779767,3032.2,3031.8,1.749]
[1720491096390,0.05774474,3032.1,3031.8,1.749]
[1720491096790,0.87561002,3032.7,3031.8,1.749]
[1720491096995,0.05772206,3032.0,3031.8,1.749]
[1720491097201,0.06008436,3032.7,3031.8,1.749]
[1720491097565,0.05805563,3032.6,3031.8,1.749]
[1720491097877,0.05805563,3032.6,3031.4,1.749]
[1720491098253,0.06008436,3032.7,3031.4,1.749]
[1720491098490,1.14272669,3032.6,3031.4,1.749]
[1720491098693,1.14272669,3032.5,3031.4,1.749]
[1720491099009,0.05793434,3032.4,3031.4,1.749]
[1720491101198,1.14280278,3032.3,3031.2,3.0]
[1720491101405,1.14280278,3032.3,3031.1,9.7114]
[1720491101406,2.3246,3032.1,3031.1,2.2714]
[1720491101612,1.48954306,3032.0,3031.1,2.2714]
[1720491101811,1.14280278,3031.9,3031.1,2.2714]
[1720491102013,1.20062076,3031.9,3031.1,2.2714]
[1720491102308,0.05781798,3031.9,3031.1,2.2714]
[1720491103818,0.05781798,3031.9,3031.0,1.749]
[1720491103819,1.14294342,3031.8,3031.0,1.749]
[1720491104110,0.05781798,3031.9,3031.0,1.749]
[1720491104326,0.05731684,3031.7,3030.7,2.315]
[1720491104481,1.14305661,3031.6,3030.6,1.749]
[1720491104676,1.14305661,3031.5,3030.6,1.749]
[1720491104907,0.05703268,3031.5,3030.6,1.749]
[1720491105095,1.14305661,3031.4,3030.6,1.749]
[1720491105494,1.1999415,3031.3,3030.6,1.749]
[1720491105692,0.05688489,3031.3,3030.6,1.749]
[1720491106119,0.26713403,3031.9,3030.6,1.749]
[1720491106321,0.05663698,3031.2,3030.6,1.749]
[1720491106495,0.26713403,3031.9,3030.6,1.749]
[1720491106695,1.64047397,3031.8,3030.7,0.06598838]
[1720491106913,1.14315751,3031.7,3030.6,1.749]
[1720491107107,0.55425517,3031.8,3030.6,1.749]
[1720491107289,0.05683282,3031.6,3030.6,1.749]
[1720491107487,0.05688577,3031.7,3030.6,1.749]
[1720491107719,0.05677987,3031.5,3030.7,2.344]
[1720491107908,0.05683282,3031.6,3030.7,2.344]
[1720491108112,0.05674209,3031.4,3030.7,2.344]
[1720491108326,0.05678707,3031.5,3030.7,2.344]
[1720491108522,0.05668115,3031.3,3030.7,2.344]
[1720491108725,0.34554684,3031.3,3030.7,2.344]
[1720491108894,0.05678625,3031.2,3031.0,1.749]
[1720491109305,0.34554684,3031.3,3031.0,1.749]
[1720491109602,0.05681836,3031.2,3031.0,1.749]
[1720491109802,0.34554684,3031.3,3031.0,1.749]
[1720491110009,0.05678146,3031.1,3031.0,1.749]
[1720491110321,0.34554684,3031.3,3031.0,1.749]
[1720491110535,2.2666,3031.2,3030.0,1.72292858]
[1720491110689,1.1431776,3031.1,3029.5,9.8141]
[1720491110888,1.8269388,3031.0,3029.5,2.3741]
[1720491111090,1.1431776,3030.9,3029.5,2.3741]
[1720491111405,1.19999295,3030.8,3029.5,2.3741]
[1720491111591,1.14355768,3030.7,3029.5,2.3741]
[1720491111793,1.19993997,3030.7,3029.6,1.749]
[1720491111991,1.14355768,3030.6,3029.6,1.749]
[1720491112192,0.05613545,3030.6,3029.7,0.06600301]
[1720491112494,0.6837612,3031.0,3029.6,4.749]
[1720491112697,0.05592255,3030.5,3029.6,4.749]
[1720491113053,0.05598514,3030.4,3029.6,4.749]
[1720491113192,0.36837612,3030.9,3029.6,4.749]
[1720491113391,0.05592216,3030.3,3029.6,4.749]
[1720491113601,0.36837612,3030.9,3029.6,4.749]
[1720491113802,0.05586917,3030.2,3029.6,4.749]
[1720491114009,0.36837612,3030.9,3029.6,4.749]
[1720491114215,0.05583135,3030.1,3029.6,4.749]
[1720491114453,0.36837612,3030.9,3029.6,4.749]
[1720491114760,0.05579442,3030.0,3029.6,4.749]
[1720491114957,0.36837612,3030.9,3029.6,4.749]
[1720491115315,0.05611877,3030.8,3029.6,4.749]
[1720491118765,0.05611877,3030.8,3029.6,4.81500173]
[1720491119677,0.05611877,3030.8,3029.6,4.749]
[1720491120784,2.2718,3030.7,3029.6,3.0]
[1720491121077,2.2718,3030.7,3029.3,3.0]
[1720491121078,2.32792861,3030.7,3029.3,3.0]
[1720491121288,0.23279286,3030.6,3029.3,3.0]
[1720491121775,0.05603872,3030.5,3029.3,3.0]
[1720491123876,0.34566606,3030.4,3029.3,3.0]
[1720491124081,2.2718,3030.3,3029.2,1.749]
[1720491124385,0.26733884,3030.2,3029.2,1.749]
[1720491124550,0.32315525,3030.2,3029.2,1.749]
[1720491126479,0.05581641,3030.2,3029.2,1.749]
[1720491126702,0.05581641,3030.2,3029.3,2.38670929]
[1720491126930,0.05581641,3030.2,3029.6,1.749]
[1720491127056,0.34566606,3030.4,3029.7,0.06599671]
[1720491127462,0.34566606,3030.4,3030.0,4.0697]
[1720491127657,0.05164056,3030.3,3030.0,4.0697]
[1720491128553,0.34566606,3030.4,3030.0,4.0697]
[1720491130512,0.34566606,3030.4,3030.1,0.61599029]
[1720491130729,7.36,3031.7,3030.2,2.3207]
[1720491131014,0.34556384,3031.4,3030.7,1.749]
[1720491131160,0.34556384,3031.4,3030.8,0.06597748]
[1720491131360,0.34556384,3031.4,3030.7,1.749]
[1720491131754,0.34556384,3031.4,3030.3,3.55]
[1720491131755,0.34556384,3031.4,3030.3,4.749]
[1720491133091,0.34556384,3031.4,3030.4,0.06598536]
[1720491133300,0.34556384,3031.4,3030.3,4.749]
[1720491134615,0.34556384,3031.4,3029.3,7.44]
[1720491134616,3.56116389,3031.3,3029.9,1.749]
[1720491134760,2.4179,3031.3,3029.9,1.749]
[1720491134958,1.14331701,3031.2,3029.9,1.749]
[1720491135287,0.05259455,3031.1,3029.9,1.749]
[1720491135656,0.05259455,3031.1,3029.9,4.749]
[1720491135865,0.24704945,3031.1,3029.9,4.749]
[1720491137299,0.24704945,3031.1,3029.9,1.749]
[1720491137495,1.14338529,3031.0,3029.9,1.749]
[1720491137706,2.275,3030.9,3029.9,1.749]
[1720491137908,1.37097532,3030.8,3029.5,4.1921]
[1720491138229,1.14350271,3030.7,3029.5,4.1921]
[1720491138522,0.05202239,3030.7,3029.5,4.1921]
[1720491138698,1.14353888,3030.6,3029.5,4.1921]
[1720491139026,2.4263,3030.6,3029.3,7.44]
[1720491139230,1.143572,3030.5,3029.3,7.44]
[1720491139455,2.4263,3030.3,3029.1,1.749]
[1720491139596,1.5005592,3030.2,3028.7,9.189]
[1720491139793,1.19537048,3030.1,3028.7,9.189]
[1720491140031,1.14373532,3030.0,3028.7,9.189]
[1720491140333,0.3569872,3030.2,3028.7,9.189]
[1720491140634,1.42208866,3030.1,3028.8,3.0]
[1720491140845,1.14375994,3030.0,3028.8,3.0]
[1720491141054,0.27832872,3030.1,3028.8,3.0]
[1720491141353,0.05161306,3029.9,3028.8,3.0]
[1720491141548,2.47796606,3030.0,3028.8,3.0]
[1720491141747,1.14381168,3029.9,3028.8,3.0]
[1720491141964,0.05161306,3029.9,3028.8,3.0]
[1720491142110,1.39160379,3029.8,3028.8,3.0]
[1720491142460,1.14391036,3029.7,3028.8,3.0]
[1720491142661,0.24779131,3029.8,3028.8,3.0]
[1720491142808,2.4263,3030.0,3028.9,0.066025]
[1720491143005,1.14380512,3029.9,3028.9,0.066025]
[1720491143312,0.05156006,3029.8,3028.8,3.0]
[1720491143718,2.4263,3030.0,3028.8,3.0]
[1720491143939,0.05150705,3029.7,3028.8,3.0]
[1720491144111,0.05162824,3029.9,3028.8,3.0]
[1720491144462,0.05146922,3029.6,3028.8,3.0]
[1720491144668,2.4263,3030.0,3028.8,3.0]
[1720491144803,2.4263,3030.0,3028.7,1.749]
[1720491145356,0.05166036,3029.9,3028.7,1.749]
[1720491145730,0.05166036,3029.9,3029.1,1.749]
[1720491146125,0.3456994,3029.8,3029.1,1.749]
[1720491146732,3.0,3030.3,3029.1,1.749]
[1720491147033,0.55979921,3030.2,3029.1,1.749]
[1720491147775,0.34569221,3030.3,3029.2,0.06600995]
[1720491147989,2.4998,3030.5,3029.5,4.11]
[1720491148133,5.66511052,3031.5,3029.6,3.06600143]
[1720491148331,0.34566692,3030.9,3029.6,3.06600143]
[1720491148534,0.34566692,3030.9,3029.9,1.749]
[1720491148787,0.05172562,3030.8,3030.0,0.06599685]
[1720491149085,0.3456202,3031.3,3030.0,0.06599685]
[1720491149232,0.05157667,3030.7,3029.9,1.749]
[1720491149433,0.33336312,3031.2,3030.0,0.06599684]
[1720491149875,0.05185056,3031.1,3030.0,0.06599684]
[1720491151717,0.05185056,3031.1,3030.1,2.4789]
[1720491154006,0.05185056,3031.1,3030.1,5.77905]
[1720491154410,0.05185056,3031.1,3030.0,3.0]
[1720491154718,0.05185056,3031.1,3030.0,6.30024]
[1720491155499,0.05185056,3031.1,3030.3,3.3]
[1720491155796,2.59799206,3031.5,3030.5,2.3408]
[1720491155954,2.3788,3031.7,3030.5,2.3408]
[1720491155955,0.05209918,3031.0,3030.5,2.3408]
[1720491156150,2.3788,3031.7,3030.5,2.3408]
[1720491156588,2.3788,3031.7,3030.5,5.70649499]
[1720491156765,2.3788,3031.7,3030.5,8.70649499]
[1720491156967,0.34557684,3031.9,3030.8,3.29941]
[1720491157183,0.34557684,3031.9,3031.1,1.749]
[1720491157383,2.3788,3032.5,3031.3,2.3408]
[1720491157586,1.55108262,3032.4,3031.4,0.06596769]
[1720491158012,0.40814296,3032.4,3031.4,0.06596769]
[1720491158232,0.40814296,3032.4,3031.1,1.749]
[1720491158406,3.40814296,3032.4,3031.1,4.749]
[1720491158605,0.5786943,3032.3,3031.1,4.749]
[1720491158801,0.5786943,3032.3,3031.1,1.749]
[1720491159207,0.5786943,3032.3,3031.0,3.0]
[1720491159390,0.05277826,3032.2,3031.0,3.0]
[1720491160091,0.05277826,3032.2,3030.9,2.321]
[1720491161003,2.4868,3032.1,3030.8,3.0]
[1720491161206,2.4868,3032.1,3030.7,1.749]
[1720491161207,1.45003861,3032.0,3030.5,3.0]
[1720491161390,1.14304781,3031.9,3030.5,3.29974]
[1720491161590,0.05304275,3031.8,3030.6,3.0]
[1720491161793,0.57937908,3031.9,3030.6,3.0]
[1720491162039,0.05304275,3031.8,3030.6,3.0]
[1720491162449,0.57937908,3031.9,3030.6,3.0]
[1720491162744,0.57937908,3031.9,3030.7,1.81498062]
[1720491162895,0.05292926,3031.8,3030.7,5.11454062]
[1720491163100,0.05292926,3031.8,3030.8,3.0]
[1720491164399,0.05292926,3031.8,3030.7,1.749]
[1720491164600,0.05292926,3031.8,3030.5,6.29969]
[1720491164935,2.4868,3031.8,3030.5,3.0]
[1720491165226,2.4868,3031.8,3030.6,0.06598497]
[1720491165430,2.4868,3031.8,3030.7,1.749]
[1720491166647,0.05295103,3031.7,3030.7,1.749]
[1720491166829,0.2539751,3031.6,3030.7,1.749]
[1720491167010,0.30688836,3031.6,3030.7,1.749]
[1720491167852,0.05291326,3031.6,3030.8,0.06598172]
[1720491168011,2.836548,3031.8,3030.8,3.06598172]
[1720491168193,0.05294154,3031.7,3030.8,3.0]
[1720491168393,0.28894895,3031.6,3030.8,3.0]
[1720491168620,0.05285171,3031.5,3030.8,3.06597912]
[1720491168855,2.836548,3031.8,3030.8,0.06597912]
[1720491169153,0.05281482,3031.4,3030.8,3.0]
[1720491169339,3.17814071,3031.8,3030.8,3.0]
[1720491169552,0.05276187,3031.3,3030.8,3.0]
[1720491169717,2.836548,3031.8,3030.8,3.0]
[1720491169895,0.05270892,3031.2,3030.8,3.0]
[1720491170095,2.836548,3031.8,3030.8,3.0]
[1720491170335,0.05265596,3031.1,3030.8,3.0]
[1720491170547,2.836548,3031.8,3030.8,3.0]
[1720491170748,3.17814071,3031.8,3030.8,3.0]
[1720491171069,0.05289427,3031.7,3030.8,3.0]
[1720491171736,0.05289427,3031.7,3030.7,8.04855]
[1720491172671,0.05289427,3031.7,3030.7,4.749]
[1720491172814,0.05289427,3031.7,3030.7,1.749]
[1720491173017,0.3231035,3031.6,3030.7,1.749]
[1720491173320,0.05280355,3031.5,3030.7,1.749]
[1720491173757,0.05280355,3031.5,3030.6,3.0]
[1720491174057,0.05280355,3031.5,3030.4,3.0]
[1720491175258,0.3231035,3031.6,3030.4,3.0]
[1720491175765,2.3855,3031.4,3030.4,3.0]
[1720491175966,1.14316841,3031.3,3030.3,1.749]
[1720491176168,2.3855,3031.4,3030.3,1.749]
[1720491176318,1.14326456,3031.3,3030.3,1.749]
[1720491176513,0.35287646,3031.3,3030.3,1.749]
[1720491177434,1.19583832,3031.2,3030.3,1.749]
[1720491177635,1.1432382,3031.1,3030.3,1.749]
[1720491177836,0.0525494,3031.1,3030.3,1.749]
[1720491178046,0.35287646,3031.3,3030.3,1.749]
[1720491178359,1.41712808,3031.2,3030.3,1.749]
[1720491178533,1.14329043,3031.1,3030.3,1.749]
[1720491178728,0.05249868,3031.1,3030.3,1.749]
[1720491179055,0.27383765,3031.2,3030.3,1.749]
[1720491179257,1.14327962,3031.1,3030.3,1.749]
[1720491179422,0.27383765,3031.2,3030.3,1.749]
[1720491179618,1.14327825,3031.1,3030.3,1.749]
[1720491179827,0.05248789,3031.0,3030.3,1.749]
[1720491180054,2.3855,3031.4,3030.3,1.749]
[1720491180361,0.05242493,3030.9,3030.3,1.749]
[1720491183758,2.3416,3030.8,3029.9,7.44]
[1720491183965,1.14336225,3030.7,3030.0,0.065999]
[1720491184195,0.05223654,3030.7,3030.1,2.3629]
[1720491184376,0.05223654,3030.7,3030.3,1.749]
[1720491184578,0.05223654,3030.7,3030.3,1.81498687]
[1720491184861,0.05242493,3030.9,3030.3,1.81498687]
[1720491185062,0.05243356,3030.6,3030.3,1.81498687]
[1720491185233,0.05242493,3030.9,3030.3,1.81498687]
[1720491185441,0.05252432,3030.8,3030.3,1.81498687]
[1720491185761,0.05252432,3030.8,3030.3,1.749]
[1720491187781,0.05252432,3030.8,3030.1,2.3629]
[1720491187782,1.14338307,3030.7,3030.1,2.3629]
[1720491188058,0.05242493,3030.9,3030.1,2.3629]
[1720491188262,0.05199639,3030.6,3030.1,2.3629]
[1720491188463,0.05242493,3030.9,3030.1,2.3629]
[1720491188629,1.14333064,3030.8,3030.1,2.3629]
[1720491188959,0.05242493,3030.9,3030.1,2.3629]
[1720491189162,0.05204937,3030.7,3030.1,2.3629]
[1720491189465,0.05242493,3030.9,3030.1,2.3629]
[1720491189667,0.05199639,3030.6,3030.1,2.3629]
[1720491189830,0.05242493,3030.9,3030.1,2.3629]
[1720491190026,1.19541853,3030.8,3030.1,2.3629]
[1720491190229,0.05208635,3030.8,3030.1,2.3629]
[1720491190869,1.1433507,3030.7,3030.0,3.0]
[1720491191079,1.1433507,3030.7,3029.9,4.749]
[1720491191080,0.05205055,3030.7,3029.9,4.749]
[1720491191261,2.54642493,3030.9,3029.9,1.749]
[1720491191577,1.14334416,3030.8,3029.9,1.749]
[1720491191726,1.14336444,3030.7,3029.9,1.749]
[1720491191932,0.05203024,3030.7,3029.9,1.749]
[1720491192133,2.54642493,3030.9,3029.9,1.749]
[1720491192376,0.05199332,3030.6,3030.0,3.30032]
[1720491192529,0.05200184,3030.8,3030.0,3.30032]
[1720491192735,0.05186138,3030.5,3030.0,3.30032]
[1720491193037,0.05242493,3030.9,3029.9,5.04943]
[1720491193277,0.05202032,3030.8,3030.0,6.30031]
[1720491193444,0.05202032,3030.8,3030.0,3.0]
[1720491193863,1.14336363,3030.7,3029.9,1.749]
[1720491194183,1.14336363,3030.6,3029.9,1.749]
[1720491194477,0.05242493,3030.9,3029.9,5.04942]
[1720491194691,0.05199059,3030.5,3030.0,3.0]
[1720491194869,2.3223,3030.5,3030.0,3.0]
[1720491195188,0.0518382,3030.4,3029.9,1.749]
[1720491195536,2.3223,3030.8,3029.9,1.749]
[1720491195701,0.0518136,3030.3,3029.9,1.749]
[1720491195987,2.3223,3030.8,3029.9,1.749]
[1720491196214,0.05176061,3030.2,3029.6,3.0]
[1720491196489,0.23747249,3030.7,3029.5,4.749]
[1720491196649,1.14349761,3030.6,3029.5,4.749]
[1720491196850,1.19548017,3030.5,3029.5,4.749]
[1720491197074,2.3216,3030.3,3029.5,1.749]
[1720491197275,1.14349761,3030.2,3029.1,5.05028]
[1720491197474,1.19528801,3030.2,3029.2,3.3012]
[1720491197784,2.3216,3030.3,3029.2,3.3012]
[1720491197943,1.14361395,3030.2,3029.1,1.749]
[1720491198144,1.1436254,3030.1,3029.1,1.749]
[1720491198386,2.3216,3030.3,3029.1,1.749]
[1720491198561,1.14364014,3030.2,3029.1,1.749]
[1720491198763,1.14364014,3030.1,3029.1,1.749]
[1720491199157,0.05183525,3030.0,3028.7,5.05072]
[1720491199371,1.14364014,3029.9,3028.7,5.05072]
[1720491199562,1.14364014,3029.9,3028.8,3.0]
[1720491199888,0.05145937,3029.8,3028.8,3.0]
[1720491200093,4.03134266,3030.2,3028.7,1.749]
[1720491200245,0.05134953,3029.7,3028.7,1.749]
[1720491200445,4.03134266,3030.2,3028.7,1.749]
[1720491200641,1.19539135,3030.1,3028.7,1.749]
[1720491200852,0.05156155,3030.1,3028.7,1.749]
[1720491201059,1.14383288,3030.0,3028.7,1.749]
[1720491201252,1.14383288,3029.9,3028.7,4.749]
[1720491201484,0.05138834,3029.8,3028.7,8.11672744]
[1720491201683,0.05138834,3029.8,3028.8,0.06601744]
[1720491201982,2.3216,3030.2,3028.7,8.05071]
[1720491202182,0.05128435,3029.7,3028.7,8.05071]
[1720491202383,2.87742036,3030.2,3028.7,8.05071]
[1720491202684,1.19520972,3030.1,3028.8,3.36763522]
[1720491202864,0.05149636,3030.1,3028.9,3.0]
[1720491203789,0.05149636,3030.1,3028.9,3.06601523]
[1720491203969,1.1437124,3030.0,3028.9,3.0]
[1720491204173,0.05149636,3030.1,3028.9,3.0]
[1720491204487,0.05133334,3030.0,3028.9,3.0]
[1720491206572,0.05133334,3030.0,3028.8,3.0]
[1720491206955,1.1437833,3029.9,3028.8,3.0]
[1720491207182,0.05116164,3029.9,3028.8,3.0]
[1720491207456,2.87742036,3030.2,3028.8,3.0]
[1720491207780,0.0511247,3029.8,3028.8,3.0]
[1720491207986,1.1437709,3029.7,3028.7,4.749]
[1720491208151,2.4838,3029.6,3028.3,7.38116]
[1720491208493,2.7882077,3029.6,3028.3,7.38116]
[1720491209691,2.7882077,3029.6,3028.4,3.0]
[1720491212011,2.53472687,3029.6,3028.4,3.0]
[1720491212191,2.53472687,3029.6,3028.7,1.749]
[1720491212192,0.05092687,3029.6,3028.7,1.749]
[1720491212575,2.3914,3029.9,3028.7,1.749]
[1720491213158,1.14387431,3029.8,3028.7,1.749]
[1720491213398,0.65352743,3029.8,3028.7,1.749]
[1720491214065,0.05093828,3029.7,3028.7,1.749]
[1720491215863,0.05093828,3029.7,3028.9,2.4981]
[1720491216102,2.3914,3029.9,3028.9,2.4981]
[1720491216601,0.0510013,3029.8,3028.9,2.4981]
[1720491216919,0.0510013,3029.8,3028.9,5.79962]
[1720491217893,0.0510013,3029.8,3028.7,5.05066]
[1720491218128,2.3914,3029.9,3028.7,5.05066]
[1720491218291,0.05098955,3029.7,3028.8,6.60317]
[1720491218495,0.05105863,3029.8,3028.8,6.60317]
[1720491218712,0.0509526,3029.6,3028.8,6.60317]
[1720491218911,2.3914,3029.9,3028.9,3.30151]
[1720491219267,0.05107469,3029.8,3028.9,3.30151]
[1720491219908,0.05107469,3029.8,3029.0,3.30141]
[1720491220134,2.2817,3030.2,3029.2,2.2743]
[1720491220430,2.2817,3030.2,3029.3,0.06601116]
[1720491220431,0.04909563,3029.7,3029.3,0.06601116]
[1720491220659,2.2817,3030.2,3029.3,0.06601116]
[1720491220822,0.05242493,3030.9,3029.3,0.06601228]
[1720491221027,0.04930767,3030.1,3029.5,1.749]
[1720491221183,2.2817,3030.6,3029.6,0.06600139]
[1720491221494,0.04951964,3030.5,3029.6,3.36674139]
[1720491222083,0.05242493,3030.9,3029.9,1.749]
[1720491222389,0.04958826,3030.4,3030.1,3.30019]
[1720491222602,0.05242493,3030.9,3030.3,1.749]
[1720491222925,0.05242493,3030.9,3030.4,0.06599089]
[1720491223730,0.05242493,3030.9,3030.3,1.749]
[1720491225422,0.05242493,3030.9,3030.4,0.06599093]
[1720491225990,0.05242493,3030.9,3030.0,3.30024]
[1720491226308,0.05242493,3030.9,3030.1,6.30022]
[1720491226696,0.05242493,3030.9,3030.1,6.36621159]
[1720491229022,0.05242493,3030.9,3030.1,3.06599159]
[1720491229226,0.05242493,3030.9,3030.5,3.29975]
[1720491229456,0.05242493,3030.9,3030.6,0.06598379]
[1720491229790,0.05242493,3030.9,3030.7,1.749]
[1720491229991,0.05242493,3030.9,3030.8,0.0659803]
[1720491230598,0.05242493,3030.9,3030.5,3.29975]
[1720491230599,0.05242493,3030.9,3030.6,3.29967]
[1720491230940,0.05242493,3030.9,3030.4,3.29984]
[1720491231228,0.05242493,3030.9,3030.5,3.0]
[1720491231593,0.05242493,3030.9,3030.2,7.44]
[1720491231835,0.29186742,3030.9,3030.2,7.44]
[1720491232991,2.309,3030.8,3029.8,1.749]
[1720491233212,2.309,3030.8,3029.5,0.68980275]
[1720491233414,2.309,3030.8,3029.5,3.99063275]
[1720491233858,2.309,3030.8,3029.5,3.30083]
[1720491234026,2.309,3030.8,3029.4,2.43880275]
[1720491234027,2.309,3030.8,3029.8,1.749]
[1720491234356,2.309,3030.8,3029.9,0.06599667]
[1720491235150,2.309,3030.8,3029.9,3.36641667]
[1720491235555,2.309,3030.8,3029.9,3.30042]
[1720491235933,2.309,3030.8,3029.9,3.3664149]
[1720491236561,2.309,3030.8,3029.9,3.30042]
[1720491238273,2.309,3030.8,3029.9,3.36641491]
[1720491238426,2.309,3030.8,3030.0,3.30032]
[1720491238623,2.309,3030.8,3030.1,0.06599325]
[1720491239267,2.309,3030.8,3029.9,3.30042]
[1720491241065,2.309,3030.8,3029.8,4.0315]
[1720491241253,0.23614249,3030.7,3029.8,1.749]
[1720491241447,0.23614249,3030.7,3029.8,4.749]
[1720491241750,0.23614249,3030.7,3029.9,3.30042]
[1720491242062,2.309,3030.8,3029.9,3.30042]
[1720491242571,2.309,3030.8,3029.9,3.36641498]
[1720491242927,2.309,3030.8,3030.0,2.2656]
[1720491243125,2.309,3030.8,3030.1,0.06599093]
[1720491243427,2.309,3030.8,3030.1,3.36620093]
[1720491245366,0.05242493,3030.9,3030.3,3.29997]
[1720491245582,0.05242493,3030.9,3030.4,0.06598544]
[1720491245741,0.05242493,3030.9,3030.3,3.29993]
[1720491246691,0.05242493,3030.9,3030.0,3.30027]
[1720491246989,2.4655,3030.8,3030.1,3.0]
[1720491247759,2.4655,3030.8,3029.9,3.0]
[1720491249680,2.4655,3030.8,3029.9,6.3004]
[1720491250336,2.4655,3030.8,3030.0,3.30029]
[1720491250676,0.05242493,3030.9,3030.2,3.3]
[1720491250875,0.05242493,3030.9,3030.3,3.3659455]
[1720491252078,0.05242493,3030.9,3030.6,1.749]
[1720491252285,0.05242493,3030.9,3030.7,0.0659806]
[1720491252675,0.05242493,3030.9,3030.8,3.29945]
[1720491253013,0.05242493,3030.9,3030.8,7.21487395]
[1720491253168,0.05242493,3030.9,3030.8,12.70537395]
[1720491256569,0.05242493,3030.9,3030.8,12.6394]
[1720491257626,0.0603743,3031.4,3030.9,3.29926]
[1720491257859,0.0603743,3031.4,3031.3,10.75022]
[1720491258067,0.349748,3031.8,3031.5,3.29858]
[1720491258363,0.349748,3031.8,3031.5,3.36454]
[1720491258933,0.349748,3031.8,3031.6,3.29857]
[1720491259133,0.349748,3031.8,3031.4,3.29873]
[1720491259459,0.349748,3031.8,3031.3,1.749]
[1720491259628,0.349748,3031.8,3031.3,5.04784]
[1720491259783,0.349748,3031.8,3031.4,3.0]
[1720491260484,0.349748,3031.8,3031.4,6.29878]
[1720491261529,0.349748,3031.8,3031.5,3.36456515]
[1720491261900,0.349748,3031.8,3031.7,8.34594]
[1720491262221,0.349748,3031.8,3031.7,8.89594]
[1720491262590,0.349748,3031.8,3031.7,11.89594]
[1720491263829,0.349748,3031.8,3031.3,5.04787]
[1720491264025,0.349748,3031.8,3031.4,3.0]
[1720491264230,0.349748,3031.8,3031.4,6.29878]
[1720491266912,0.349748,3031.8,3031.4,3.0]
[1720491267228,0.349748,3031.8,3031.3,8.04788]
[1720491267687,0.349748,3031.8,3031.4,3.29878]
[1720491267888,0.349748,3031.8,3031.3,4.749]
[1720491268089,0.349748,3031.8,3031.4,3.55]
[1720491268290,0.349748,3031.8,3031.4,0.55]
[1720491268823,0.349748,3031.8,3031.6,3.29852]
[1720491269012,0.349748,3031.8,3031.4,0.55]
[1720491269217,0.349748,3031.8,3031.4,3.0]
[1720491269946,0.349748,3031.8,3031.4,6.2988]
[1720491270443,0.349748,3031.8,3031.4,6.29871]
[1720491270622,0.349748,3031.8,3031.5,3.29868]
[1720491271639,0.349748,3031.8,3031.7,3.29847]
[1720491272137,0.349748,3031.8,3031.7,11.41189927]
[1720491272289,0.349748,3031.8,3031.7,11.96189927]
[1720491274908,0.06008436,3032.7,3032.2,3.29789]
[1720491275125,0.06008436,3032.7,3032.3,0.06594694]
[1720491275534,0.06008436,3032.7,3032.5,3.29752]